Cogmind - Beta 12 *** ADVENTURER MODE // 2023.04.04 @ 15:01:23 Player: shisihs Result: Destroyed by D-53 Grenadier with Mini Grenade Launcher Performance ------------- Evolutions (1) 500 Regions Visited (3) 600 Robots Destroyed (11) 55 Value Destroyed (177) 177 Prototype IDs (0) 0 Alien Tech Used (0) 0 Bonus (0) 0 TOTAL SCORE: 1332 Bonus ------- None Cogmind --------- Core Integrity 0/400 Matter 290/300 Energy 84/100 System Corruption 0% Temperature Cool (0) Movement Walking (260) Ox2 Location -9/Mines Parts ------- > --- POWER (1) -------- (None) > --- PROPULSION (2) --- Aluminum Leg > --- UTILITY (4) ------ Large Storage Unit Structural Scanner Utility Shielding > --- WEAPON (2) ------- (None) > --- INVENTORY (15) --- Reinforced Ion Engine Aluminum Leg Medium Storage Unit Large Storage Unit Large Battery (200) Visual Processing Unit Signal Interpreter Salvage Targeting Computer Salvage Targeting Computer EM Pulse Gun Spread Laser Beamcaster Peak State ------------ > --- POWER ------------ Ion Engine > --- PROPULSION ------- Aluminum Leg Carbon-fiber Leg > --- UTILITY ---------- Large Storage Unit Structural Scanner Propulsion Shielding Light Armor Plating > --- WEAPON ----------- Assault Rifle Assault Rifle > --- INVENTORY -------- Ion Engine Reinforced Ion Engine Light Treads Light Treads Aluminum Leg Medium Storage Unit Large Storage Unit Large Battery Visual Processing Unit Signal Interpreter Salvage Targeting Computer Salvage Targeting Computer Utility Shielding EM Pulse Gun Spread Laser [Rating: 13] Favorites ----------- Power Ion Engine Engine Ion Engine Propulsion Aluminum Leg Leg Aluminum Leg Utility Propulsion Shielding Device Structural Scanner Storage Large Storage Unit Processor Signal Interpreter Protection Propulsion Shielding Weapon Assault Rifle Ballistic Gun Assault Rifle Build | -11 -10 -9 -9 ------- Run | Jun Mat Mat Min Slots Evolved 2 | . . 2 . Power . | . . . . Propulsion . | . . . . Utility 2 | . . 2 . Weapon . | . . . . Parts Attached 16 | 6 2 3 5 Power 2 | 1 . . 1 Engine 2 | 1 . . 1 Core . | . . . . Reactor . | . . . . Propulsion 5 | 2 . . 3 Treads . | . . . . Leg 5 | 2 . . 3 Wheel . | . . . . Hover . | . . . . Flight . | . . . . Utility 7 | 1 2 3 1 Device 1 | . . 1 . Storage 2 | 1 1 . . Processor 1 | . . 1 . Hackware . | . . . . Protection 3 | . 1 1 1 Artifact . | . . . . Weapon 2 | 2 . . . Energy Gun . | . . . . Energy Cannon . | . . . . Ballistic Gun 2 | 2 . . . Ballistic Cannon . | . . . . Launcher . | . . . . Special Weapon . | . . . . Impact Weapon . | . . . . Slashing Weapon . | . . . . Piercing Weapon . | . . . . Special Melee Weapon . | . . . . Unidentified Prototypes . | . . . . Parts Lost 8 | . . . 8 Power 2 | . . . 2 Propulsion 2 | . . . 2 Utility 2 | . . . 2 Weapon 2 | . . . 2 Highest Loss Streak 8 | . . . 8 To Critical Strikes . | . . . . Average Slot Usage (%) 98 | . 97 100 98 Engine 11 | . 14 11 10 Leg 23 | . 28 22 21 Device 7 | . . 11 11 Storage 11 | . 14 11 11 Protection 18 | . 11 22 21 Ballistic Gun 23 | . 28 22 21 Naked Turns . | . . . . Heaviest Build 34 | 14 30 34 34 Greatest Support 25 | 20 20 20 25 Greatest Overweight (x) 8 | 1 1 1 8 Average Overweight (x) . | . . 1 1 Largest Inventory Capacity 15 | 8 15 15 15 Average Capacity 13 | 6 10 15 15 Most Carried 15 | 6 13 15 15 Average Carried 12 | 4 8 13 14 Final Capacity 15 | 8 15 15 15 Final Carried 15 | 6 13 15 12 Class Distribution -------------------- 100% | Mutant Dominant Class ---------------- Mutant | -10/Materials Mutant | -9/Materials Mutant | -9/Mines Resources | -11 -10 -9 -9 ----------- Run | Jun Mat Mat Min Matter Collected 450 | 170 172 23 85 Remotely . | . . . . Salvage Created 229 | . 132 23 74 Parts 25 | . 12 4 9 Haulers Intercepted . | . . . . Recyclers Shooed . | . . . . Parts Field Recycled . | . . . . Retrieved Matter . | . . . . Parts Self-Destructed . | . . . . Prevented . | . . . . Kills | -11 -10 -9 -9 ------- Run | Jun Mat Mat Min Combat Hostiles Destroyed 10 | . 5 . 5 Guns 10 | . 5 . 5 Classes Destroyed 3 | . 2 1 . Watcher 1 | . . 1 . Swarmer 8 | . 3 . 5 Grunt 2 | . 2 . . Best Kill Streak 5 | . 5 1 3 Combat Bots Only 5 | . 5 . 3 Max Kills in Single Turn 1 | . 1 1 1 Gunslinging . | . . . . Exploded . | . . . . Melee . | . . . . Uniques/NPCs Destroyed . | . . . . Combat | -11 -10 -9 -9 -------- Run | Jun Mat Mat Min Damage Taken 1286 | . 165 126 995 Core 428 | . 8 23 397 Absorbed by Shields . | . . . . Redirected to Shielding 95 | . 19 7 69 Core Remaining (%) 98 | 100 96 . . Volleys Fired 20 | . 12 2 6 Largest 2 | . 2 2 2 Hottest 40 | . 40 40 40 Shots Fired 40 | . 24 4 12 Gun 40 | . 24 4 12 Cannon . | . . . . Launcher . | . . . . Special . | . . . . Kinetic 40 | . 24 4 12 Thermal . | . . . . Explosive . | . . . . Electromagnetic . | . . . . Robot Hit Streak 12 | . 5 8 12 Robot Miss Streak 1 | . 1 . 1 Penetration Max . | . . . . Secondary Targets 1 | . 1 . . Max Gunslinging Chain 1 | . 1 . . Shots Hit Robots 29 | . 18 3 8 Core Hits 14 | . 8 1 5 Critical Kills . | . . . . Critical Parts Destroyed . | . . . . Critical Strikes . | . . . . Melee Attacks . | . . . . Impact . | . . . . Slashing . | . . . . Piercing . | . . . . Sneak Attacks . | . . . . Combat Hostiles . | . . . . Follow-up Attacks . | . . . . Damage Inflicted 378 | . 230 39 109 Guns 378 | . 230 39 109 Cannons . | . . . . Explosions . | . . . . Melee . | . . . . Ramming . | . . . . Kinetic 378 | . 230 39 109 Thermal . | . . . . Explosive . | . . . . Electromagnetic . | . . . . Impact . | . . . . Slashing . | . . . . Piercing . | . . . . Highest Corruption . | . . . . Average Corruption . | . . . . Corruption Purged . | . . . . Corruption Blocked . | . . . . Overload Shots . | . . . . Overflow Damage . | . . . . Projectiles . | . . . . Explosions . | . . . . Melee . | . . . . Knockbacks . | . . . . Impact . | . . . . Kinetic . | . . . . Secondary . | . . . . Self-Inflicted Damage . | . . . . Shots . | . . . . Rammed . | . . . . Targets Rammed . | . . . . Kicked . | . . . . Crushed . | . . . . Highest Temperature 10 | . 10 9 . Average Temperature 4 | . 4 9 . Received Heat Transfer 153 | . 90 63 . Siege Activations . | . . . . Robots Corrupted . | . . . . Combat Hostiles . | . . . . Parts Fried . | . . . . Impact Corruptions . | . . . . Robots Melted . | . . . . Combat Hostiles . | . . . . Parts Melted . | . . . . Heat Transferred . | . . . . Parts Sabotaged . | . . . . Parts Stolen . | . . . . Parts Stripped . | . . . . Power Chain Reactions . | . . . . Missiles Intercepted . | . . . . Alert | -11 -10 -9 -9 ------- Run | Jun Mat Mat Min Peak Influence 123 | . 123 37 120 Initial 12 | . . . 12 Average 21 | . 26 9 23 Maximum Alert Level . | . . . . Low Security (%) 100 | 100 100 100 100 Level 1 . | . . . . Level 2 . | . . . . Level 3 . | . . . . Level 4 . | . . . . Level 5 . | . . . . High Security . | . . . . Max Security . | . . . . Squads Dispatched . | . . . . Investigation . | . . . . Extermination . | . . . . Reinforcement . | . . . . Assault . | . . . . Garrison . | . . . . Intercept . | . . . . Searches Triggered . | . . . . Construction Impeded . | . . . . Haulers Reinforced . | . . . . Active Scanning Responses . | . . . . Cargo Convoy Interrupts . | . . . . Stealth | -11 -10 -9 -9 --------- Run | Jun Mat Mat Min Distress Signals . | . . . . Communications Jammed . | . . . . Distress Signals . | . . . . Times Spotted 15 | . 5 3 7 Peak Tracking Total 3 | . 3 2 3 Tactical Retreats . | . . . . Traps | -11 -10 -9 -9 ------- Run | Jun Mat Mat Min Traps Triggered . | . . . . Indirectly . | . . . . Trap Hack Attempts . | . . . . Triggered . | . . . . Disarmed . | . . . . Reprogrammed . | . . . . Reused . | . . . . Traps Extracted . | . . . . Installed . | . . . . Triggered . | . . . . Machines | -11 -10 -9 -9 ---------- Run | Jun Mat Mat Min Machines Disabled . | . . . . Max in Single Turn . | . . . . Machines Repaired . | . . . . Machines Sabotaged . | . . . . Overloaded Fab Kills . | . . . . Hacking | -11 -10 -9 -9 --------- Run | Jun Mat Mat Min Machines Accessed 1 | . 1 . . Terminals 1 | . 1 . . Fabricators . | . . . . Repair Stations . | . . . . Recycling Units . | . . . . Scanalyzers . | . . . . Garrison Access . | . . . . Total Hacks 1 | . 1 . . Successful 1 | . 1 . . Failed . | . . . . Catastrophic . | . . . . Database Lockouts . | . . . . Manual . | . . . . Terminals 1 | . 1 . . Fabricators . | . . . . Repair Stations . | . . . . Recycling Units . | . . . . Scanalyzers . | . . . . Garrison Access . | . . . . Terminal Hacks 1 | . 1 . . Locate Traps 1 | . 1 . . Fabricator Hacks . | . . . . Repair Station Hacks . | . . . . Recycling Unit Hacks . | . . . . Scanalyzer . | . . . . Garrison Access Hacks . | . . . . Unauthorized Hacks . | . . . . Terminals . | . . . . Fabricators . | . . . . Repair Stations . | . . . . Recycling Units . | . . . . Scanalyzers . | . . . . Garrison Access . | . . . . Data Cores Recovered . | . . . . Used . | . . . . Hacking Detections . | . . . . Full Trace Events . | . . . . Feedback Events . | . . . . Feedback Blocked . | . . . . Robot Schematics Acquired . | . . . . Robots Built . | . . . . Authchips . | . . . . Time . | . . . . Total Robot Build Rating . | . . . . Part Schematics Acquired . | . . . . Parts Built . | . . . . Authchips . | . . . . Time . | . . . . Total Part Build Rating . | . . . . Parts Repaired . | . . . . Time . | . . . . Parts Recycled . | . . . . Recycled Matter . | . . . . Retrieved Matter . | . . . . Retrieved Components . | . . . . Parts Scanalyzed . | . . . . Part Schematics Acquired . | . . . . Parts Damaged . | . . . . Bothacking | -11 -10 -9 -9 ------------ Run | Jun Mat Mat Min Used RIF Installer . | . . . . Robots Hacked . | . . . . Non-combat . | . . . . Combat . | . . . . Robot Hacks Applied . | . . . . Relay Couplers Released . | . . . . Fabnet Peak Effective % . | . . . . Robots Rewired . | . . . . Allies Hacked . | . . . . Hacks Repelled . | . . . . Allies | -11 -10 -9 -9 -------- Run | Jun Mat Mat Min Total Allies . | . . . . Largest Group . | . . . . Highest-Rated Group . | . . . . Highest-Rated Ally . | . . . . Total Orders . | . . . . Ally Attacks . | . . . . Total Damage . | . . . . Kills . | . . . . Allies Corrupted . | . . . . Allies Melted . | . . . . Intel | -11 -10 -9 -9 ------- Run | Jun Mat Mat Min Robot Analysis Total . | . . . . Derelict Logs Recovered . | . . . . Drone Launches . | . . . . Drone Recoveries . | . . . . Exploration | -11 -10 -9 -9 ------------- Run | Jun Mat Mat Min Turns Passed 1667 | 87 497 217 866 Spaces Moved 805 | 71 309 88 337 Core 24 | 22 . . 2 Treads . | . . . . Legs 781 | 49 309 88 335 Wheels . | . . . . Hover . | . . . . Flight . | . . . . Fastest Speed 50 | 50 120 190 190 Average Speed 162 | 99 137 190 191 Slowest Speed 450 | 120 190 190 450 Overloaded Moves . | . . . . Propulsion Burnouts . | . . . . Robots Hopped . | . . . . Cave-ins Triggered . | . . . . Exploration Rate (%) 26 | 4 39 8 53 Regions Visited 3 Branch Regions 1 Pre-discovered Areas 1 | . . . 1 Known Exits Taken . | . . . . Unknown Exits Taken 3 | 1 1 1 . Scrap Searched 1 | . . . 1 Spaces Dug . | . . . . Terrain Destroyed . | . . . . Melee . | . . . . Projectile . | . . . . AOE . | . . . . Terrain Rammed . | . . . . Walls Destroyed . | . . . . Machines Disabled . | . . . . Actions | -11 -10 -9 -9 --------- Run | Jun Mat Mat Min Total 1130 | 86 360 135 549 Wait 248 | . 23 35 190 Move 802 | 70 308 87 337 Hop . | . . . . Pick Up 32 | 10 11 6 5 Fast Attach 2 | 2 . . . Attach 11 | 4 1 3 3 Detach 1 | . . 1 . Swap 3 | . 1 . 2 Drop 11 | . 4 1 6 Fire 20 | . 12 2 6 Melee . | . . . . Ram . | . . . . Kick . | . . . . Crush . | . . . . Escape Stasis . | . . . . Rewire . | . . . . Trap . | . . . . Miscellaneous . | . . . . Route ------- -11/Junkyard -10/Materials -9/Materials -9/Mines (discovered 1 exit: [*Mat]) History --------- Turn | Location | Event 8 | -11/Junkyard | Discovered new exit (range 15) 88 | -11/Junkyard | Entered Materials 303 | -10/Materials | Build established: Mutant 530 | -10/Materials | Discovered new exit (range 3) 585 | -10/Materials | Entered another Materials area 585 | -9/Materials | Evolved 2 slots: Utility x2 771 | -9/Materials | Discovered new exit (range 15) 802 | -9/Materials | Entered Mines 803 | -9/Mines | Met a Derelict bent on vengeance 1002 | -9/Mines | Learned location of Storage (-8) 1321 | -9/Mines | Discovered new exit (range 8) 1620 | -9/Mines | Assembled infested the area 1659 | -9/Mines | Core integrity fell below 50% 1665 | -9/Mines | Core integrity fell below 20% 1668 | -9/Mines | Destroyed by D-53 Grenadier with Mini Grenade Launcher Last Messages --------------- 01644_ K-01 Serf destroyed. 01645_ The unstable cave ceiling collapses. 01645_ Propulsion Shielding destroyed. 01645_ U-05 Engineer lays Concrete. 01646_ U-05 Engineer builds a Wall. 01647_ The unstable cave ceiling collapses. 01647_ Aluminum Leg destroyed. 01649_ The unstable cave ceiling collapses. 01651_ U-05 Engineer builds a Wall. 01651_ U-05 Engineer lays Concrete. 01652_ U-05 Engineer builds a Wall. 01655_ Carbon-fiber Leg destroyed. 01655_ U-05 Engineer builds a Wall. 01656_ U-05 Engineer lays Concrete. 01657_ The unstable cave ceiling collapses. 01657_ U-05 Engineer builds a Wall. 01658_ Ion Engine destroyed. 01659_ The unstable cave ceiling collapses. 01666_ U-05 Engineer lays Concrete. 01667_ U-05 Engineer builds a Wall. Map ----- +----------------------------------------------------+ | ?????????????????????????????????????????#### | | ????????????????????????????????????????#### | | ???????????????????????????????????????#### | | ???????????????????????????????????????### | | ???????????????????????????????????????## | | ???????????????????????????????????????## # | | ????????????????????????????? ######??### ## | | ???????????????????????????? #######?##### ## | | ??????????????????????????? ###??##### ## | | ???????????????????????????? ########## ## | | ????????####??????????????? ######### # | | ??????? ######????????????? # | | ??????#### #####????????? # # | | ??????### ####?????????## ?## ### # | | ??????## " ?????????###??## ##### #### ## | | ??????## "%" ???????????### ##### ######## | | ?????? # #####?????????#### #### ####### | | ?????????? ## # #####???????### ### ##???? | | ?????????? # # # ##########?## ###??? | | ????????# # # # ########### ##??? | | ????????## # # # ##### ###### ##??? | | ????????### ##u # #### ######## ###??? | | ?????????### # d ## ### ###??########??? | | ?????????### # #####??#####???? | | ??????????### ####??????????? | | ??????????### d @ ###?????????? | | ???????????### # # ##?????????? | | ???????????#### ## ##?????????? | | ????????????#### ###### ###?????????? | | ?????????????#### ## ############?????????? | | ??????????????## ###########???#####??????????? | | ??????????????################???????????????????? | | ??????????????#######????????????????????????????? | | | | | | | | | | | | | | | | | | | | | | | | | | | | | | | | | | | +----------------------------------------------------+ Best States ------------- Heat Dissipation 28 Energy Generation 10 Energy Capacity 250 Matter Stores 300 Matter Capacity 300 Sight Range 16 Terrain Scan Density 10 Armor Coverage 150 Resistance: KI 20 Resistance: TH 20 Resistance: EX 20 Resistance: EM 20 Resistance: I 20 Resistance: S 20 Resistance: P 20 Propulsion Shielding 33 Utility Shielding 33 Evasion (%) 55 Offensive Hacking 10 Item Schematics ----------------- None Robot Schematics ------------------ None Fabricated ------------ Nothing Alien Tech Used ----------------- None Achievements -------------- None Challenges ------------ None Game ------ Seed MakeshiftArchitectWeb Manual? 0 Play Time 00:16:26 Cumulative 23.3 hours Start 2023.04.04 @ 14:36:15 End 2023.04.04 @ 15:01:23 Sessions 1 Manual Loads 0 Difficulty Adventurer Special Mode None Game No. 47 Rogue 19 Adventurer 28 Explorer 0 Win Type - Total 0 Types 0/0/0/0/0/0/0/0/0 Lore% 14 Gallery% 27 Achievement% 21 Wizard Run 0 Options --------- ASCII 0 Keyboard 0 Movement Numpad Keybinds 0 Fullscreen 1 Font 18/SmallcapsGlow Map View 76x50 Tactical HUD 1 Map Filters NONE Filters NONE Steam 1 RUN: 9e57b087-4188-4308-928e-add34ec4104e